Cogmind - Beta 17 @@@ ROGUE MODE // 2026.06.23 @ 14:30:43 Player: Petvaria Result: Destroyed by IM-ZX4(j) with Overtuned Pulse Rifle Performance ------------- Evolutions (0) 0 Regions Visited (3) 600 Robots Destroyed (19) 95 Value Destroyed (484) 484 Prototype IDs (17) 340 Alien Tech Used (0) 0 Bonus (866) 866 TOTAL SCORE: 2385 Bonus ------- Follower Combat Kills 66 Registered with UFD 300 Met Optimus in HQ 500 Cogmind --------- Core Integrity 0/250 Matter 235/300 Energy 263/265 System Corruption 0% Temperature Warning (375) Movement Rolling (120) Ox2 Location -7/Scraptown Parts ------- > --- POWER (1) -------- Reinforced Ion Engine > --- PROPULSION (2) --- Armored Wheel Armored Wheel > --- UTILITY (2) ------ High-capacity Storage Unit Self-contained Transmogrifier > --- WEAPON (2) ------- Heavy Assault Rifle Heavy Assault Rifle > --- INVENTORY (20) --- Improved Deuterium Engine Light Treads Light Treads Light Treads Armored Treads Advanced Treads Medium Treads Armored Wheel Advanced Cooling System Expert System Improved Shield Generator Makeshift Hacking Suite A0-MCA's Component Scanner Tech Extrapolator Rainbow Chip Assault Rifle Gauss Rifle Makeshift Sword Peak State ------------ > --- POWER ------------ Reinforced Ion Engine > --- PROPULSION ------- Armored Treads Armored Wheel > --- UTILITY ---------- High-capacity Storage Unit Hardened Medium Armor Plating > --- WEAPON ----------- Coil Gun Makeshift Sword > --- INVENTORY -------- Improved Deuterium Engine Light Treads Light Treads Light Treads Light Treads Advanced Treads Medium Treads Armored Wheel Armored Wheel Expert System Improved Shield Generator Makeshift Hacking Suite A0-MCA's Component Scanner Self-contained Transmogrifier Rainbow Chip Assault Rifle Heavy Assault Rifle Heavy Assault Rifle Gauss Rifle [Rating: 27] Favorites ----------- Power Reinforced Ion Engine Engine Reinforced Ion Engine Propulsion Light Treads Treads Light Treads Wheel Armored Wheel Utility High-capacity Storage Unit Device Seismic Detector Storage High-capacity Storage Unit Protection Hardened Medium Armor Plating Weapon Heavy Assault Rifle Energy Gun Medium Laser Ballistic Gun Heavy Assault Rifle Special Weapon CPS Tube Slashing Weapon Makeshift Sword Build | -11 -10 -10 -7 ------- Run | Yrd Mat Sub Scr Slots Evolved . | . . . . Power . | . . . . Propulsion . | . . . . Utility . | . . . . Weapon . | . . . . Parts Attached 24 | 7 3 2 12 Power 2 | 1 1 . . Engine 2 | 1 1 . . Core . | . . . . Reactor . | . . . . Propulsion 7 | 2 1 . 4 Treads 5 | 2 1 . 2 Leg . | . . . . Wheel 2 | . . . 2 Hover . | . . . . Flight . | . . . . Utility 6 | 2 1 . 3 Device 2 | 1 . . 1 Storage 2 | 1 1 . . Processor . | . . . . Hackware . | . . . . Protection 2 | . . . 2 Artifact . | . . . . Weapon 9 | 2 . 2 5 Energy Gun 1 | 1 . . . Energy Cannon . | . . . . Ballistic Gun 6 | 1 . 1 4 Ballistic Cannon . | . . . . Launcher . | . . . . Special Weapon 1 | . . . 1 Impact Weapon . | . . . . Slashing Weapon 1 | . . 1 . Piercing Weapon . | . . . . Special Melee Weapon . | . . . . Unidentified Prototypes 1 | . . . 1 Parts Lost 3 | . . . 3 Power . | . . . . Propulsion . | . . . . Utility 2 | . . . 2 Weapon 1 | . . . 1 Highest Loss Streak 2 | . . . 2 To Critical Strikes . | . . . . Average Backups 17 | 4 14 18 19 Power 1 | . 1 2 1 Propulsion 6 | 2 6 8 7 Utility 4 | . 3 5 5 Weapon 3 | . 2 3 4 Tool/Special . | . . . . Unused Backups 38 | . 3 1 34 Power 6 | . 1 . 5 Propulsion 10 | . 2 . 8 Utility 18 | . . 1 17 Weapon 4 | . . . 4 Tool/Special . | . . . . Average Slot Usage (%) 99 | . 99 100 99 Engine 14 | . 14 14 14 Treads 25 | . 28 28 24 Wheel 2 | . . . 3 Device 8 | . 13 14 5 Storage 14 | . 14 14 14 Protection 5 | . . . 8 Energy Gun 8 | . 13 14 5 Ballistic Gun 17 | . 14 12 20 Peak Build Rating 27 | 7 10 15 27 Average Rating 15 | 5 8 11 19 On Entrance 7 | . 7 10 13 Avg Prop Armor Cover (%) 10 | . . . 10 Naked Turns . | . . . . Heaviest Build 66 | 15 55 55 66 Greatest Support 48 | 40 40 40 48 Greatest Overweight (x) 5 | . 1 1 5 Average Overweight (x) 1 | . . 1 1 Largest Inventory Capacity 20 | 8 20 20 20 Average Capacity 19 | 7 19 20 20 Most Carried 20 | 7 19 20 20 Average Carried 17 | 4 14 18 19 Final Capacity 20 | 8 20 20 20 Final Carried 20 | 6 18 20 18 Class Distribution -------------------- 100% | Mutant Dominant Class ---------------- Mutant | -10/Materials Mutant | -10/Subcaves Mutant | -7/Scraptown Resources | -11 -10 -10 -7 ----------- Run | Yrd Mat Sub Scr Matter Collected 853 | 291 205 . 357 Remotely . | . . . . Salvage Created 756 | 124 354 . 278 Parts 50 | 5 31 . 14 Haulers Intercepted 1 | . 1 . . Recyclers Shooed . | . . . . Parts Field Recycled . | . . . . Retrieved Matter . | . . . . Parts Self-Destructed 2 | . . . 2 Prevented . | . . . . Parts Restored . | . . . . Kills | -11 -10 -10 -7 ------- Run | Yrd Mat Sub Scr Combat Hostiles Destroyed 12 | . 8 . 4 Guns 12 | . 8 . 4 Classes Destroyed 9 | 2 5 . 2 Tunneler 3 | 2 1 . . Hauler 1 | . 1 . . Recycler 1 | 1 . . . Operator 1 | . 1 . . Watcher 1 | . 1 . . Swarmer 3 | . 3 . . Grunt 5 | . 5 . . Scrapper 3 | . . . 3 Mutant 1 | . . . 1 Best Kill Streak 3 | 2 3 . 1 Combat Bots Only 3 | . 3 . 1 Max Kills in Single Turn 1 | 1 1 . 1 Gunslinging . | . . . . Exploded . | . . . . Melee . | . . . . Uniques/NPCs Destroyed . | . . . . Combat | -11 -10 -10 -7 -------- Run | Yrd Mat Sub Scr Hostile Shots Fired 106 | . 46 . 60 Missed 25 | . 14 . 11 Hits 81 | . 32 . 49 Projectile 81 | . 32 . 49 Critical Strikes 3 | . . . 3 Damage Taken 1397 | . 377 . 1020 Core 270 | . 122 . 148 Absorbed by Shields . | . . . . Regen/Repaired (Parts) 140 | . 140 . . Core Remaining (%) 100 | 100 . . . Volleys Fired 72 | 7 41 1 23 Largest 2 | 2 2 1 2 Hottest 70 | 70 70 20 58 Shots Fired 141 | 14 83 1 43 Gun 139 | 14 83 1 41 Cannon . | . . . . Launcher . | . . . . Special 2 | . . . 2 Kinetic 91 | 7 42 1 41 Thermal 48 | 7 41 . . Explosive . | . . . . Electromagnetic . | . . . . Robot Hit Streak 11 | 8 10 . 11 Robot Miss Streak 4 | 2 4 . 2 Penetration Max . | . . . . Secondary Targets 1 | . . . 1 Max Gunslinging Chain 1 | . . . 1 Shots Hit Robots 89 | 10 50 . 29 Core Hits 33 | 4 21 . 8 Critical Kills 2 | . 1 . 1 Critical Parts Destroyed 1 | . 1 . . Critical Strikes 7 | . 6 . 1 Burn 4 | . 4 . . Destroy 3 | . 2 . 1 Melee Attacks 15 | . . 2 13 Impact . | . . . . Slashing 15 | . . 2 13 Piercing . | . . . . Sneak Attacks . | . . . . Combat Hostiles . | . . . . Follow-up Attacks . | . . . . Damage Inflicted 1287 | 129 634 . 524 Guns 1273 | 129 620 . 524 Cannons . | . . . . Explosions . | . . . . Melee . | . . . . Ramming 14 | . 14 . . Kinetic 907 | 54 329 . 524 Thermal 366 | 75 291 . . Explosive . | . . . . Electromagnetic . | . . . . Impact . | . . . . Slashing . | . . . . Piercing . | . . . . Highest Corruption 1 | . 1 1 . Average Corruption 1 | . 1 1 . Corruption Purged . | . . . . Corruption Blocked . | . . . . Effects 18 | . 9 9 . Message Errors 1 | . . 1 . Matter Fused 9 | . 5 4 . Heat Flow Errors 2 | . 1 1 . Energy Discharges 3 | . 1 2 . Data Loss (minor) 1 | . . 1 . Misfires 2 | . 2 . . Overload Shots . | . . . . Overflow Damage . | . . . . Projectiles . | . . . . Explosions . | . . . . Melee . | . . . . Knockbacks . | . . . . Impact . | . . . . Kinetic . | . . . . Secondary . | . . . . Self-Inflicted Damage . | . . . . Shots . | . . . . Rammed 3 | . 3 . . Targets Rammed 3 | . 3 . . Kicked . | . . . . Crushed . | . . . . Highest Temperature 394 | 45 215 106 394 Average Temperature 77 | 19 63 70 109 Received Heat Transfer 771 | . 177 . 594 Effects 2 | . . . 2 Shutdowns 1 | . . . 1 Interference 1 | . . . 1 Siege Activations . | . . . . Martial Activations . | . . . . Shielding Activations . | . . . . Robots Disrupted . | . . . . Combat Hostiles . | . . . . Robots Corrupted . | . . . . Combat Hostiles . | . . . . Parts Fried . | . . . . Impact Corruptions . | . . . . Robots Melted . | . . . . Combat Hostiles . | . . . . Parts Melted 3 | . . . 3 Heat Transferred 1369 | 222 1147 . . Parts Sabotaged . | . . . . Parts Stolen . | . . . . Parts Stripped . | . . . . Power Chain Reactions . | . . . . Alert | -11 -10 -10 -7 ------- Run | Yrd Mat Sub Scr Maximum Alert Level . | . . . . Low Security (%) 100 | 100 100 . . Level 1 . | . . . . Level 2 . | . . . . Level 3 . | . . . . Level 4 . | . . . . Level 5 . | . . . . High Security . | . . . . Max Security . | . . . . Peak Influence 105 | 10 105 . . Initial . | . . . . Average 12 | 1 13 . . Influence Increases 272 | 15 257 . . Destroy 0b10 Robot/C 160 | . 160 . . Destroy 0b10 Robot/NC 35 | 15 20 . . Destroy Leader 44 | . 44 . . Successful Hack 18 | . 18 . . Lose Combat Pursuer 15 | . 15 . . Influence Decreases 272 | 15 257 . . Time Decay 272 | 15 257 . . Squads Dispatched 1 | . 1 . . Investigation . | . . . . Extermination . | . . . . Reinforcement 1 | . 1 . . Assault . | . . . . Garrison . | . . . . Intercept . | . . . . Searches Triggered . | . . . . Construction Impeded . | . . . . Haulers Reinforced . | . . . . Active Scanning Responses . | . . . . Cargo Convoy Interrupts . | . . . . Stealth | -11 -10 -10 -7 --------- Run | Yrd Mat Sub Scr Distress Signals . | . . . . Communications Jammed . | . . . . Distress Signals . | . . . . Times Spotted 35 | . 20 . 15 Peak Tracking Total 5 | . 3 . 5 Tactical Retreats 1 | . 1 . . Traps | -11 -10 -10 -7 ------- Run | Yrd Mat Sub Scr Traps Triggered 1 | . 1 . . Indirectly . | . . . . Trap Hack Attempts . | . . . . Triggered . | . . . . Disarmed . | . . . . Reprogrammed . | . . . . Reused . | . . . . Traps Extracted . | . . . . Installed . | . . . . Triggered . | . . . . Machines | -11 -10 -10 -7 ---------- Run | Yrd Mat Sub Scr Machines Disabled 2 | . . 1 1 Max in Single Turn 1 | . . 1 1 Machines Repaired . | . . . . Machines Dismantled . | . . . . Machines Sabotaged . | . . . . Overloaded Fab Kills . | . . . . Hacking | -11 -10 -10 -7 --------- Run | Yrd Mat Sub Scr Machines Accessed 7 | . 6 1 . Terminals 5 | . 5 . . Fabricators . | . . . . Repair Stations 1 | . 1 . . Recycling Units . | . . . . Scanalyzers . | . . . . Garrison Access . | . . . . Total Hacks 29 | . 20 9 . Successful 24 | . 15 9 . Failed 4 | . 4 . . Catastrophic . | . . . . Database Lockouts 1 | . 1 . . Manual 27 | . 27 . . Terminals 16 | . 16 . . Fabricators . | . . . . Repair Stations 4 | . 4 . . Recycling Units . | . . . . Scanalyzers . | . . . . Garrison Access . | . . . . Terminal Hacks 12 | . 3 9 . Record 8 | . . 8 . Part Schematic 1 | . 1 . . Robot Analysis 1 | . 1 . . Hauler Manifests 1 | . 1 . . Proto ID Catalog 1 | . . 1 . Fabricator Hacks . | . . . . Repair Station Hacks 4 | . 4 . . Scan Component 2 | . 2 . . Repair 2 | . 2 . . Recycling Unit Hacks . | . . . . Scanalyzer . | . . . . Garrison Access Hacks . | . . . . Unauthorized Hacks 8 | . 8 . . Terminals 8 | . 8 . . Botnet 3 | . 3 . . Skim 5 | . 5 . . Fabricators . | . . . . Repair Stations . | . . . . Recycling Units . | . . . . Scanalyzers . | . . . . Garrison Access . | . . . . Data Cores Recovered . | . . . . Used . | . . . . Hacking Detections 5 | . 5 . . Full Trace Events . | . . . . Feedback Events . | . . . . Feedback Blocked . | . . . . Robot Schematics Acquired . | . . . . Robots Built . | . . . . Authchips . | . . . . Time . | . . . . Total Robot Build Rating . | . . . . Part Schematics Acquired 1 | . 1 . . Parts Built . | . . . . Authchips . | . . . . Time . | . . . . Total Part Build Rating . | . . . . Part Studies Acquired . | . . . . Parts Repaired 2 | . 2 . . Time 52 | . 52 . . Parts Recycled . | . . . . Recycled Matter . | . . . . Retrieved Matter . | . . . . Retrieved Components . | . . . . Parts Scanalyzed . | . . . . Part Schematics Acquired . | . . . . Parts Damaged . | . . . . Bothacking | -11 -10 -10 -7 ------------ Run | Yrd Mat Sub Scr Used RIF Installer . | . . . . Robots Hacked . | . . . . Non-combat . | . . . . Combat . | . . . . Robot Hacks Applied . | . . . . Relay Couplers Released . | . . . . Fabnet Peak Effective % . | . . . . Robots Rewired . | . . . . Allies Hacked . | . . . . Hacks Repelled . | . . . . Allies | -11 -10 -10 -7 -------- Run | Yrd Mat Sub Scr Total Allies 1 | . . . 1 Largest Group 1 | . . . 1 Highest-Rated Group 66 | . . . 66 Highest-Rated Ally 66 | . . . 66 Total Orders 6 | . . . 6 STAY 3 | . . . 3 FOLLOW 3 | . . . 3 Ally Attacks 9 | . . . 9 Total Damage 256 | . . . 256 Kills 2 | . . . 2 Allies Corrupted . | . . . . Allies Melted 13 | . . . 13 Intel | -11 -10 -10 -7 ------- Run | Yrd Mat Sub Scr Active Infowar (turns) 5476 | 41 1859 1263 2313 Seismic 5476 | 41 1859 1263 2313 Robot Analysis Total 1 | . 1 . . Derelict Logs Recovered 1 | . . 1 . Drone Launches . | . . . . Drone Recoveries . | . . . . Exploration | -11 -10 -10 -7 ------------- Run | Yrd Mat Sub Scr Turns Passed 9306 | 176 1908 1263 5959 Spaces Moved 3692 | 95 706 429 2462 Core 14 | 14 . . . Treads 3091 | 81 706 429 1875 Legs . | . . . . Wheels 587 | . . . 587 Hover . | . . . . Flight . | . . . . Fastest Speed 50 | 50 160 240 120 Average Speed 223 | 143 237 240 220 Slowest Speed 240 | 160 240 240 240 Overloaded Moves . | . . . . Propulsion Burnouts . | . . . . Robots Hopped . | . . . . Potential Cave-ins . | . . . . Cave-ins Triggered . | . . . . Exploration Rate (%) 50 | 5 88 21 87 Regions Visited 3 Branch Regions 2 Pre-discovered Areas . | . . . . Known Exits Taken 1 | . 1 . . Unknown Exits Taken 2 | 1 . 1 . Scrap Searched 5 | . . . 5 Spaces Dug 5 | . . . 5 Terrain Destroyed 8 | . . . 8 Melee 2 | . . . 2 Projectile 6 | . . . 6 AOE . | . . . . Terrain Rammed . | . . . . Walls Destroyed . | . . . . Machines Disabled . | . . . . Actions | -11 -10 -10 -7 --------- Run | Yrd Mat Sub Scr Total 4590 | 121 854 660 2955 Wait 661 | . 77 223 361 Move 3689 | 94 705 428 2462 Hop . | . . . . Pick Up 70 | 13 18 3 36 Fast Attach 2 | . . . 2 Attach 13 | 7 3 . 3 Detach 1 | . 1 . . Swap 21 | . 2 2 17 Drop 43 | . 4 1 38 Fire 72 | 7 41 1 23 Melee 15 | . . 2 13 Ram . | . . . . Kick . | . . . . Crush 3 | . 3 . . Escape Stasis . | . . . . Rewire . | . . . . Trap . | . . . . Miscellaneous . | . . . . Route ------- -11/Scrapyard -10/Materials (discovered 6 exits: *Mat x3 / *Min x2 / *Sub) -10/Subcaves (discovered 3 exits: Mat / Rec / *Scr) -7/Scraptown (discovered 2 exits: *Fac x2) History --------- Turn | Location | Event 28 | -11/Scrapyard | Discovered new exit (range 16) 177 | -11/Scrapyard | Entered Materials 312 | -10/Materials | Build established: Mutant 415 | -10/Materials | Discovered new exit (range 6) 738 | -10/Materials | Discovered new exit (range 15) 949 | -10/Materials | Central database locked down 954 | -10/Materials | Discovered new exit (range 8) 1087 | -10/Materials | Identified exit to Materials 1087 | -10/Materials | Identified exit to Subcaves 1146 | -10/Materials | Loaded intel: 21 trap records 1240 | -10/Materials | Learned Storage trap positions 1271 | -10/Materials | Learned location of 1 exit from Recycling 1297 | -10/Materials | Identified exit to Mines 1316 | -10/Materials | Learned location of 2 exits from Subcaves 1339 | -10/Materials | Repaired Med. Laser 1345 | -10/Materials | Learned Storage stockpile data 1366 | -10/Materials | Repaired Lgt. Treads 1385 | -10/Materials | Learned location of 1 exit from Storage 2085 | -10/Materials | Entered Subcaves 2086 | -10/Subcaves | Approached by a straggling Scientist 2086 | -10/Subcaves | Identified exit to Materials 2086 | -10/Subcaves | Identified exit to Recycling 2498 | -10/Subcaves | Scientist uncovered a shortcut to Scraptown 3027 | -10/Subcaves | Visited 4L-MR0's lab 3050 | -10/Subcaves | Found Rainbow Chip 3056 | -10/Subcaves | Found Prototype Device 3348 | -10/Subcaves | Entered Scraptown 3348 | -7/Scraptown | System corruption cleaned by C-Scrubber 3947 | -7/Scraptown | Visited CPS Storage 3981 | -7/Scraptown | Visited Comm Corps 4379 | -7/Scraptown | Heard Great Nut preacher, LISTEN AND RECITE! 4566 | -7/Scraptown | Visited Cave Peace 4722 | -7/Scraptown | Visited Science Testing Area 4775 | -7/Scraptown | Visited Symbiants 4835 | -7/Scraptown | Visited TADAMA 4981 | -7/Scraptown | Visited UFD Registry 4981 | -7/Scraptown | Registered with UFD as "Longforce" 5039 | -7/Scraptown | Visited Curators Association 5183 | -7/Scraptown | Visited LU-1G1's Boring Crew 5253 | -7/Scraptown | Visited DA-N13 Charitable Foundation 5274 | -7/Scraptown | Found DCF Scrap (25 items) 5553 | -7/Scraptown | Visited Scrap Suit Storage 5601 | -7/Scraptown | Visited Derelict Rescue Squad 5659 | -7/Scraptown | Visited A0-MCA Data Center 5675 | -7/Scraptown | Given a B rating by A0-MCA 5680 | -7/Scraptown | Found A0-MCA's Component Scanner 5712 | -7/Scraptown | Visited Junk Repository 5777 | -7/Scraptown | Visited Botcube Research 5839 | -7/Scraptown | Visited Supply Room 5910 | -7/Scraptown | Visited Junk Repository 6510 | -7/Scraptown | Found Botcube 6781 | -7/Scraptown | Found Scrap Suit 7144 | -7/Scraptown | Botcube activated 7166 | -7/Scraptown | Botcube completed mutation into legged form, armed with 2 guns. 7956 | -7/Scraptown | Found Scrap Suit 8105 | -7/Scraptown | Discovered new exit (range 5) 8483 | -7/Scraptown | Met Optimus 8483 | -7/Scraptown | Accepted into 0bPrime 8883 | -7/Scraptown | Civil war broke out across Scraptown 8886 | -7/Scraptown | Attached CPS modules to A0-MCA 8893 | -7/Scraptown | Found Prototype Processor 8961 | -7/Scraptown | Lost 7 allies 9001 | -7/Scraptown | Identified exit to Factory 9106 | -7/Scraptown | Lost 3 allies 9215 | -7/Scraptown | Core integrity fell below 50% 9226 | -7/Scraptown | Optimus destroyed in the chaos of civil war 9302 | -7/Scraptown | Core integrity fell below 20% 9303 | -7/Scraptown | Identified Sfc. Transmogrifier 9307 | -7/Scraptown | Destroyed by IM-ZX4(j) with Overtuned Pulse Rifle Last Messages --------------- repair Ovr. Titanium Leg. Slug penetrates IM-ZX4(j). Slug penetrates FR-ICO(j). Slug penetrates UFD Mainframe. Coil Gun destroyed. Overheating: System interference. Gauss Rifle temporarily disabled. Critical hit (Burn: +50). FR-ICO(j) heat short circuits Ovr. Titanium Leg. Mak. Salvage Targeting Computer melted. Lgt. Deuterium Engine melted. FR-ICO(j) destroyed. Switching to secondary target: IM-ZX4(j). Power failure, Rnf. Ion Engine shutdown. Critical hit (Burn: +50). Hrd. Light Armor Plating destroyed. Identified Sfc. Transmogrifier. IM-ZX4(j) heat damages Lgt. Deuterium Engine. The unstable cave ceiling collapses. Mak. Microdissipator Network crushed. Map ----- +----------------------------------------------------+ | ?????????????????????????????????????????????????? | | ?????????????????????????????????????????????????? | | ?????????????????????????????????????????????????? | | ?????????????????????????????????????????????????? | | ########?????????????????????????????????????????? | | """""""############??????????????????????????????? | | X""""""## #????????????????????##########? | | " ""## #?????????############"""!![""#? | | ""## #?????????#!!#!![#/!##" !! ["#? | | ""## #?????????#=!# [ #* ##"" [[["#? | | ""## #?????????# # # ##"" [["#? | | ""## #?????????# ##" ""#? | | "## #?????????# ##" [% "#? | | ## #?????????##### "########## ###? | | ################ ####???????##### #########"=!#### | | #???????#"""" """ """""!=%"""" | | #???????#" %[!! | | #???????#" = = | | #???????#" % [ | | #???????#" =!=! !!= | | ########### ##??#####" ! =% / !!%* | | #####?????# # #?#"""" %!=!="""""""!"""""" | | #?????# ## ##"""" =!% %"=""""""""""""" | | #?????# #?# #"""" ==!!""###### ##### | | "" #?????# #?# #="""!!!%!%""# | | "" #?????# #?###@"""%!% ![!"# X | | "" #?????# ###?#%""*== !![*"# "" "" | | "" #?????# ""#"#!!!"!!!= % "# "" "" X | | "" #?????# """"#"j=[*%!! # " " | | #?????# ""#####=;"=%= " * | | ??????# ###????#;"!!%! "" =%[ | | #####?????# #########%*=![%""# =" " | | ??????????# %* [%[%= =%%!!=!=""# " "" " | | ??????????# *%! =% !*= !%!%[ ""# "" "" | | ??????????# =%[ !=* !%! [/ ""# X | | ??????????# !== =*!%= ""# | | ########### %[ !%=/!![!""###### ##### | | % *%[ =%="""""""""""""" | | *! [%!" """"""""""""" | | [%! =[ ! !=[ | | = *&[=%= !%= | | ! [!%[%*=%* * | | =[ [=#""""#! | | !=! =%#????#"!! | | *! #????#=%! " """"""""""" "" | | ############# ### ####????##%"##" ########### ## | | ???????????"""""# #????????# "## | | ????????? # #????????##"" ""### # | | ???????""" """# #?????????#!" "$#???# | | ???????" "# #????????##"" ""##??# | +----------------------------------------------------+ Best States ------------- Heat Dissipation 25 Energy Generation 12 Energy Capacity 265 Matter Stores 300 Matter Capacity 300 Sight Range 16 Terrain Scan Density 10 Armor Coverage 225 Evasion (%) 50 Recoil Reduction 2 Item Schematics ----------------- Huge Storage Unit | -10/Materials | Hacked Robot Schematics ------------------ None Fabricated ------------ Nothing Repaired ---------- Med. Laser | 17% | -10/Materials Lgt. Treads | 41% | -10/Materials Studied --------- None Alien Tech Used ----------------- None Achievements -------------- None Challenges ------------ None Game ------ Seed PitchforkLaunchUnit Manual? 0 Play Time 01:00:46 Cumulative 434.8 hours Start 2026.06.23 @ 13:18:09 End 2026.06.23 @ 14:30:43 Sessions 1 Manual Loads 0 Difficulty Rogue Special Mode None Game No. 277 Rogue 277 Adventurer 0 Explorer 0 Win Type - Total 31 Types 15/1/7/2/1/1/1/1/0/2 Lore% 95 Gallery% 89 Achievement% 79 Wizard Run 0 Options --------- Layout 1 ASCII 0 Keyboard 0 Movement Numpad Keybinds 0 Fullscreen 1 Font 24/Proggy Map View 50x35 Zoom Use 0% Tactical HUD 0 Map Filters NONE Filters NONE Steam 1 RUN: ab85f035-7e6f-4eb4-88cf-57b9c8af278b